bitfinex/quotes_SOLUSD_20250305
["timestamp","ask_amount","ask_price","bid_price","bid_amount"]
[1741147341900,0.03,142.53,142.5,81.6]
[1741147342100,2.03,142.53,142.5,81.6]
[1741147342299,0.03,142.53,142.5,137.76950408]
[1741147342717,0.03,142.53,142.51,56.16950408]
[1741147342926,0.03,142.53,142.52,56.31166565]
[1741147343229,0.03,142.53,142.52,146.40083191]
[1741147343422,0.03,142.53,142.52,144.78600408]
[1741147343594,0.03,142.53,142.52,400.6165]
[1741147345096,0.03,142.53,142.52,81.6]
[1741147345716,2.0,142.51,142.48,81.6]
[1741147346020,58.16950408,142.51,142.48,81.6]
[1741147346225,2.0,142.51,142.48,81.6]
[1741147347106,58.16950408,142.5,142.44,63.18950408]
[1741147347310,58.16950408,142.5,142.44,144.78950408]
[1741147347509,2.0,142.49,142.44,137.76950408]
[1741147347711,56.16950408,142.52,142.45,56.16950408]
[1741147348020,2.0,142.48,142.45,81.6]
[1741147348819,2.0,142.52,142.46,56.16950408]
[1741147349130,56.16950408,142.52,142.46,137.76950408]
[1741147349417,0.03,142.53,142.48,56.16950408]
[1741147349622,0.03,142.53,142.49,56.16950408]
[1741147349833,0.03,142.53,142.49,137.76950408]
[1741147350394,0.03,142.53,142.49,81.6]
[1741147350903,0.03,142.53,142.49,137.76950408]
[1741147351125,0.03,142.53,142.52,56.16950408]
[1741147351328,0.03,142.53,142.52,144.78600408]
[1741147351525,0.03,142.53,142.52,145.07032722]
[1741147351731,0.0001,142.53,142.52,145.07032722]
[1741147352525,0.0001,142.53,142.52,457.07032722]
[1741147352912,0.0001,142.53,142.52,478.22032722]
[1741147353230,0.03,142.62,142.58,0.28432314]
[1741147353437,0.03,142.62,142.61,56.16950408]
[1741147353602,2.03,142.62,142.61,81.6]
[1741147353809,2.0,142.59,142.57,81.6]
[1741147354298,2.03,142.62,142.57,81.6]
[1741147354718,2.03,142.62,142.57,137.76950408]
[1741147355016,2.0,142.59,142.57,81.6]
[1741147355205,56.16950408,142.6,142.5,7.0175]
[1741147355206,2.0,142.57,142.5,7.0175]
[1741147355410,58.16950408,142.57,142.51,56.16950408]
[1741147355614,2.0,142.54,142.51,81.6]
[1741147355808,58.16950408,142.54,142.51,81.6]
[1741147356011,2.0,142.54,142.51,81.6]
[1741147356213,58.16950408,142.54,142.51,81.6]
[1741147356539,58.16950408,142.52,142.48,81.6]
[1741147356721,2.0,142.52,142.48,81.6]
[1741147357219,2.0,142.51,142.48,81.6]
[1741147357923,56.16950408,142.54,142.48,144.78770408]
[1741147358123,64.35950408,142.58,142.52,56.16950408]
[1741147358315,64.35950408,142.58,142.53,56.16950408]
[1741147358316,8.19,142.58,142.53,56.16950408]
[1741147358633,56.16950408,142.57,142.52,81.6]
[1741147358836,2.0,142.56,142.52,81.6]
[1741147359135,56.16950408,142.56,142.52,81.6]
[1741147359441,2.0,142.52,142.5,81.6]
[1741147360620,2.0,142.52,142.47,144.78840408]
[1741147361338,2.0,142.51,142.47,144.78840408]
[1741147361725,2.0,142.56,142.48,0.28432314]
[1741147361935,62.35950408,142.58,142.52,56.16950408]
[1741147362234,0.03,142.62,142.57,56.16950408]
[1741147362448,0.03,142.62,142.59,56.16950408]
[1741147362622,0.03,142.62,142.6,56.16950408]
[1741147362824,0.03,142.62,142.6,81.6]
[1741147363030,0.03,142.62,142.61,56.16950408]
[1741147363231,2.03,142.62,142.6,81.6]
[1741147363539,2.0,142.59,142.57,81.6]
[1741147363740,0.03,142.62,142.57,144.78340408]
[1741147363945,0.03,142.62,142.59,56.16950408]
[1741147363946,2.03,142.62,142.59,56.16950408]
[1741147364256,2.03,142.62,142.59,81.6]
[1741147364553,0.03,142.62,142.59,81.6]
[1741147364733,0.03,142.62,142.59,137.76950408]
[1741147365335,0.03,142.62,142.59,81.6]
[1741147365540,2.0,142.61,142.59,81.6]
[1741147365740,0.03,142.62,142.59,81.6]
[1741147365950,2.0,142.61,142.59,81.6]
[1741147366146,2.03,142.62,142.59,81.6]
[1741147366839,2.0,142.61,142.59,81.6]
[1741147368251,0.03,142.62,142.59,144.78210408]
[1741147368463,0.03,142.62,142.61,56.16950408]
[1741147368756,0.03,142.62,142.61,137.76950408]
[1741147368953,0.03,142.62,142.61,138.05382722]
[1741147369454,0.0001,142.62,142.61,138.05382722]
[1741147370139,0.0001,142.62,142.61,145.06592722]
[1741147370456,0.0001,142.62,142.61,144.78160408]
[1741147370749,0.0001,142.62,142.61,145.06592722]
[1741147371373,0.0001,142.62,142.61,400.6121]
[1741147371534,0.0001,142.62,142.61,81.6]
[1741147372164,2.0,142.61,142.57,63.18350408]
[1741147372349,58.16950408,142.61,142.57,81.6]
[1741147372736,2.0,142.6,142.57,81.6]
[1741147373140,2.0,142.61,142.57,137.76950408]
[1741147373447,0.0001,142.62,142.58,56.16950408]
[1741147373868,0.0001,142.62,142.6,76.16950408]
[1741147374043,0.0001,142.62,142.61,56.16950408]
[1741147374365,0.0001,142.62,142.61,56.45382722]
[1741147374669,0.0001,142.62,142.61,450.05382722]
[1741147375144,0.0001,142.62,142.61,137.91166565]
[1741147375971,0.0001,142.62,142.61,145.06592722]
[1741147378054,0.0001,142.62,142.61,457.06592722]
[1741147379074,0.03,142.66,142.65,0.14216157]
[1741147379282,0.0001,142.66,142.65,138.05382722]
[1741147379485,0.0001,142.66,142.65,137.91166565]
[1741147379648,0.0001,142.66,142.65,139.52503647]
[1741147379854,0.0001,142.66,142.65,81.74216157]
[1741147380087,0.0001,142.66,142.65,137.91166565]
[1741147380287,0.0001,142.66,142.65,81.6]
[1741147380464,0.0001,142.66,142.65,88.6101]
[1741147380652,0.0001,142.66,142.65,144.92176565]
[1741147380852,0.0001,142.66,142.65,88.75226157]
[1741147381068,0.0001,142.66,142.65,144.92176565]
[1741147381288,0.0001,142.66,142.65,145.06392722]
[1741147381592,0.0001,142.68,142.67,76.45382722]
[1741147381789,0.0001,142.68,142.67,77.92472473]
[1741147381963,0.0001,142.68,142.67,471.52472473]
[1741147382163,0.0001,142.68,142.67,470.05382722]
[1741147383100,0.0001,142.68,142.67,164.77860408]
[1741147383388,0.0001,142.68,142.67,165.06292722]
[1741147384068,0.03,142.77,142.68,0.28432314]
[1741147384261,0.03,142.77,142.76,56.31166565]
[1741147384467,0.03,142.78,142.77,0.14216157]
[1741147384862,0.03,142.78,142.77,81.6]
[1741147385185,0.03,142.78,142.77,81.74216157]
[1741147385382,2.0,142.89,142.8,0.14216157]
[1741147385685,2.0,142.85,142.81,0.28432314]
[1741147385873,2.0,142.85,142.81,138.05382722]
[1741147386075,2.0,142.85,142.81,449.76950408]
[1741147386398,2.0,142.81,142.77,81.6]
[1741147386565,58.16950408,142.81,142.77,81.6]
[1741147386773,58.16950408,142.78,142.72,56.16950408]
[1741147386968,1.50527203,142.83,142.72,81.6]
[1741147386969,56.16950408,142.76,142.72,81.6]
[1741147387184,2.0,142.74,142.72,81.6]
[1741147387388,56.16950408,142.74,142.69,81.6]
[1741147387565,2.0,142.73,142.69,0.28432314]
[1741147387895,2.0,142.73,142.69,56.45382722]
[1741147388384,58.16950408,142.75,142.69,56.45382722]
[1741147388586,2.0,142.75,142.7,63.17670408]
[1741147388890,8.46,142.78,142.73,56.16950408]
[1741147389093,6.46,142.78,142.74,56.16950408]
[1741147389471,2.0,142.79,142.76,56.16950408]
[1741147389664,4.2103,142.8,142.74,137.76950408]
[1741147389869,2.0,142.78,142.74,81.6]
[1741147390087,2.0,142.76,142.74,137.76950408]
[1741147390275,2.0,142.76,142.74,81.6]
[1741147390476,2.0,142.79,142.75,56.16950408]
[1741147390684,2.2103,142.8,142.76,56.16950408]
[1741147391196,2.0,142.79,142.77,56.16950408]
[1741147391377,2.2103,142.8,142.76,56.45382722]
[1741147391796,2.2103,142.8,142.77,56.16950408]
[1741147391964,2.2103,142.8,142.78,56.16950408]
[1741147392171,2.03,142.83,142.79,56.16950408]
[1741147392389,2.0,142.81,142.79,81.6]
[1741147392589,2.03,142.83,142.8,7.0028]
[1741147392904,2.03,142.83,142.82,56.16950408]
[1741147392905,0.03,142.83,142.82,56.16950408]
[1741147393078,0.03,142.83,142.82,137.76950408]
[1741147393271,2.03,142.83,142.82,81.6]
[1741147393877,2.0,142.79,142.78,81.6]
[1741147394288,2.0,142.78,142.76,81.6]
[1741147394486,2.0,142.77,142.76,81.6]
[1741147394782,2.0,142.8,142.76,144.77420408]
[1741147394994,2.0,142.8,142.77,56.16950408]
[1741147395192,2.0,142.81,142.77,56.16950408]
[1741147395387,2.0,142.78,142.76,144.77420408]
[1741147395573,2.0,142.79,142.76,144.77420408]
[1741147395769,2.0,142.81,142.77,56.16950408]
[1741147396192,2.0,142.8,142.76,144.77420408]
[1741147396403,56.16950408,142.82,142.76,81.6]
[1741147396404,2.0,142.77,142.76,81.6]
[1741147396599,2.0,142.75,142.72,56.16950408]
[1741147396902,2.0,142.77,142.74,56.16950408]
[1741147397983,2.0,142.79,142.76,56.16950408]
[1741147398179,2.0,142.76,142.75,56.16950408]
[1741147398376,2.0,142.76,142.75,81.6]
[1741147398581,2.0,142.74,142.72,88.6066]
[1741147398784,2.0,142.73,142.72,81.6]
[1741147399605,2.0,142.73,142.72,88.6067]
[1741147399782,2.0,142.73,142.72,81.6]
[1741147400198,0.03,142.77,142.72,137.76950408]
[1741147400406,2.0,142.75,142.73,56.16950408]
[1741147400895,2.0,142.76,142.74,56.16950408]
[1741147401080,0.03,142.77,142.73,0.28432314]
[1741147401279,0.03,142.77,142.75,56.16950408]
[1741147401479,0.03,142.77,142.75,137.76950408]
[1741147401888,0.03,142.77,142.75,81.6]
[1741147402086,0.03,142.77,142.76,7.0047]
[1741147402281,0.03,142.77,142.75,81.6]
[1741147402482,0.03,142.77,142.75,88.6052]
[1741147402796,0.03,142.77,142.76,56.16950408]
[1741147402984,0.03,142.77,142.76,137.76950408]
[1741147403184,2.03,142.77,142.76,81.6]
[1741147404013,0.03,142.77,142.76,145.05852722]
[1741147404604,0.03,142.77,142.76,123.22157145]
[1741147405597,2.0,142.81,142.76,140.73347145]
[1741147405908,2.0,142.79,142.77,34.61687145]
[1741147406208,2.0,142.78,142.76,122.93724831]
[1741147406385,2.0,142.78,142.76,88.6047]
[1741147406591,2.0,142.77,142.76,7.0047]
[1741147406793,2.0,142.75,142.74,88.6056]
[1741147407795,2.0,142.75,142.74,81.6]
[1741147408106,2.0,142.72,142.7,81.6]
[1741147408413,2.0,142.67,142.66,0.033]
[1741147409017,57.82385038,142.67,142.66,0.033]
[1741147410113,64.83295038,142.67,142.66,0.033]
[1741147410910,57.82385038,142.67,142.66,0.033]
[1741147412410,2.0,142.58,142.56,81.6]
[1741147412582,2.0,142.57,142.56,81.6]
[1741147413016,2.0,142.55,142.54,81.6]
[1741147413522,2.0,142.65,142.57,20.0]
[1741147413822,2.0,142.64,142.62,55.82385038]
[1741147414022,2.0,142.61,142.6,81.6]
[1741147414311,2.0,142.58,142.54,7.29982314]
[1741147414485,2.0,142.57,142.55,55.82385038]
[1741147414809,2.0,142.57,142.54,88.6155]
[1741147415003,2.0,142.6,142.56,55.82385038]
[1741147415187,2.0,142.59,142.57,75.82385038]
[1741147415512,2.0,142.58,142.57,81.6]
[1741147415691,2.0,142.62,142.57,137.42385038]
[1741147415897,8.34,142.64,142.6,55.82385038]
[1741147416095,8.34,142.64,142.6,137.42385038]
[1741147416302,88.436,142.68,142.62,55.82385038]
[1741147416303,2.0,142.65,142.62,55.82385038]
[1741147416605,2.0,142.67,142.64,55.82385038]
[1741147416808,8.636,142.68,142.64,55.82385038]
[1741147417113,2.0,142.69,142.66,55.82385038]
[1741147417309,2.0,142.69,142.65,55.82385038]
[1741147417501,2.0,142.68,142.64,137.42385038]
[1741147417909,2.0,142.68,142.65,7.0101]
[1741147418116,2.0,142.66,142.64,81.6]
[1741147418283,2.0,142.67,142.64,81.6]
[1741147418484,2.0,142.61,142.6,137.42385038]
[1741147418912,2.0,142.64,142.61,0.14216157]
[1741147419102,2.0,142.67,142.63,55.82385038]
[1741147419411,2.0,142.64,142.63,81.6]
[1741147419583,2.0,142.65,142.59,81.6]
[1741147419789,2.0,142.67,142.63,55.82385038]
[1741147420030,2.0,142.63,142.62,55.82385038]
[1741147420192,2.0,142.63,142.62,144.43535038]
[1741147420401,2.0,142.64,142.62,88.6115]
[1741147420598,2.0,142.63,142.62,144.43535038]
[1741147420805,2.0,142.66,142.62,144.43535038]
[1741147420988,2.0,142.67,142.63,55.82385038]
[1741147421184,2.0,142.63,142.62,81.6]
[1741147421493,2.0,142.59,142.57,144.43785038]
[1741147421706,2.0,142.58,142.57,81.6]
[1741147422615,2.0,142.58,142.57,88.614]
[1741147422789,2.0,142.59,142.57,88.614]
[1741147423117,2.0,142.61,142.57,144.43785038]
[1741147423413,2.0,142.58,142.57,144.43785038]
[1741147423626,2.0,142.62,142.57,144.43785038]
[1741147423926,2.0,142.62,142.6,55.82385038]
[1741147424119,2.0,142.64,142.6,137.42385038]
[1741147424288,2.0,142.67,142.63,55.82385038]
[1741147424489,2.0,142.64,142.63,81.6]
[1741147424794,7.79527203,142.7,142.63,81.6]
[1741147424795,0.03,142.66,142.63,137.42385038]
[1741147424988,0.03,142.66,142.64,55.82385038]
[1741147425389,0.03,142.66,142.65,55.82385038]
[1741147426020,0.03,142.66,142.64,137.42385038]
[1741147426313,2.03,142.66,142.64,137.42385038]
[1741147426516,2.03,142.66,142.65,7.0101]
[1741147427008,0.03,142.66,142.65,7.0101]
[1741147427321,0.0001,142.66,142.65,144.71827352]
[1741147429429,2.0001,142.66,142.65,81.6]
[1741147429721,2.0001,142.66,142.65,88.6101]
[1741147429922,2.0,142.65,142.62,55.82385038]
[1741147430123,2.0,142.63,142.61,81.6]
[1741147430329,2.0,142.62,142.61,81.6]
[1741147430795,2.0,142.57,142.56,81.633]
[1741147431127,2.0,142.57,142.56,88.6475]
[1741147431422,2.0,142.59,142.57,0.28432314]
[1741147431597,2.0,142.58,142.57,81.6]
[1741147432522,2.0,142.58,142.57,88.614]
[1741147432819,2.0,142.58,142.57,144.43785038]
[1741147433018,2.0,142.58,142.57,81.6]
[1741147433225,2.0,142.57,142.56,0.033]
[1741147433719,57.82385038,142.57,142.56,0.033]
[1741147433924,59.94405038,142.57,142.56,0.033]
[1741147434099,2.0,142.54,142.53,0.033]
[1741147435051,8.3,142.56,142.53,0.033]
[1741147435227,2.0,142.58,142.55,55.82385038]
[1741147435433,2.0,142.58,142.55,137.42385038]
[1741147435605,2.0,142.59,142.55,137.42385038]
[1741147435801,2.0,142.56,142.55,137.42385038]
[1741147436000,2.0,142.58,142.55,137.42385038]
[1741147436302,2.0,142.57,142.55,81.6]
[1741147436832,2.0,142.56,142.55,81.6]
[1741147437197,2.0,142.54,142.53,0.033]
[1741147437906,2.0,142.55,142.53,0.033]
[1741147438114,2.0,142.54,142.53,62.87285038]
[1741147438324,2.0,142.55,142.53,144.47285038]
[1741147438502,2.0,142.54,142.53,144.47285038]
[1741147438697,2.0,142.55,142.53,144.47285038]
[1741147438906,2.0,142.56,142.53,144.47285038]
[1741147439116,2.0,142.55,142.53,144.47285038]
[1741147439440,2.0,142.54,142.53,81.633]
[1741147440340,57.82385038,142.54,142.53,0.033]
[1741147440508,59.29912241,142.54,142.53,0.033]
[1741147440704,2.0,142.54,142.53,0.033]
[1741147441107,57.82385038,142.54,142.53,0.033]
[1741147441405,64.83935038,142.54,142.53,0.033]
[1741147441631,57.82385038,142.54,142.53,0.033]
[1741147441834,2.0,142.54,142.53,0.033]
[1741147443432,57.82385038,142.54,142.53,0.033]
[1741147444037,2.0,142.54,142.53,0.033]
[1741147444615,2.0,142.55,142.53,0.033]
[1741147445046,2.0,142.54,142.53,0.033]
[1741147447340,66.31462241,142.54,142.53,0.033]
[1741147447553,66.56635038,142.52,142.51,0.033]
[1741147447841,2.0,142.42,142.41,0.033]
[1741147448013,2.0,142.42,142.41,137.45685038]
[1741147448209,2.0,142.45,142.41,144.47865038]
[1741147448416,6.28,142.48,142.44,55.82385038]
[1741147448631,6.28,142.48,142.47,55.82385038]
[1741147448829,8.28,142.48,142.46,55.82385038]
[1741147449140,2.0,142.45,142.44,55.82385038]
[1741147449344,2.0,142.43,142.41,144.47865038]
[1741147449538,2.0,142.44,142.42,55.82385038]
[1741147449845,2.0,142.45,142.43,55.82385038]
[1741147450149,2.0,142.44,142.42,55.82385038]
[1741147450443,2.0,142.42,142.41,0.033]
[1741147451013,2.0,142.42,142.41,55.85685038]
[1741147451210,2.0,142.45,142.41,63.16307352]
[1741147451427,2.0,142.49,142.45,0.28432314]
[1741147451618,2.0,142.5,142.48,55.82385038]
[1741147451850,2.0,142.5,142.49,55.82385038]
[1741147452622,2.0,142.52,142.49,137.42385038]
[1741147453160,8.32,142.53,142.5,55.82385038]
[1741147453320,6.32,142.53,142.52,55.82385038]
[1741147453514,2.03,142.56,142.52,55.82385038]
[1741147453743,0.03,142.56,142.55,76.10817352]
[1741147453972,2.0,142.63,142.56,0.28432314]
[1741147454141,2.0,142.65,142.62,55.82385038]
[1741147454340,2.0,142.64,142.63,55.82385038]
[1741147454776,2.0,142.63,142.62,367.82385038]
[1741147455147,2.0001,142.66,142.62,367.82385038]
[1741147455372,2.0001,142.66,142.63,55.82385038]
[1741147455748,2.0,142.65,142.62,374.83495038]
[1741147456266,2.0001,142.66,142.63,55.82385038]
[1741147456472,2.0,142.6,142.59,7.0127]
[1741147456648,2.0,142.65,142.59,62.83655038]
[1741147456847,2.0,142.59,142.58,81.6]
[1741147457176,2.0,142.55,142.53,81.6]
[1741147457365,2.0,142.51,142.49,81.6]
[1741147457599,2.0,142.51,142.5,7.30152314]
[1741147457771,2.0,142.51,142.5,88.90152314]
[1741147458075,2.0,142.51,142.5,144.72537352]
[1741147458255,2.0,142.51,142.5,137.42385038]
[1741147458643,2.0,142.51,142.5,81.6]
[1741147458863,55.82385038,142.55,142.48,55.82385038]
[1741147458864,2.0,142.5,142.48,55.82385038]
[1741147459062,2.0,142.49,142.47,55.82385038]
[1741147459252,2.0,142.48,142.47,81.6]
[1741147459466,2.0,142.48,142.47,449.42385038]
[1741147459976,2.0,142.52,142.47,456.44265038]
[1741147460278,2.0,142.49,142.48,0.28432314]
[1741147460460,2.0,142.5,142.48,81.88432314]
[1741147460645,2.0,142.5,142.49,55.82385038]
[1741147461074,2.0,142.52,142.49,55.82385038]
[1741147461577,2.0,142.52,142.49,62.84165038]
[1741147461953,2.0,142.52,142.5,55.82385038]
[1741147462159,2.0,142.51,142.5,55.82385038]
[1741147462546,2.0,142.52,142.5,55.82385038]
[1741147462879,2.0,142.56,142.52,0.28432314]
[1741147463081,2.0,142.57,142.55,55.82385038]
[1741147463377,2.0,142.57,142.56,55.82385038]
[1741147463553,2.0,142.58,142.56,62.83835038]
[1741147464078,2.0,142.58,142.56,55.82385038]
[1741147464278,2.0,142.56,142.53,55.82385038]
[1741147464478,2.0,142.52,142.51,82.98251195]
[1741147464680,55.82385038,142.58,142.49,137.45685038]
[1741147464681,2.0,142.51,142.49,137.45685038]
[1741147464854,2.0,142.5,142.49,137.45685038]
[1741147465172,2.0,142.53,142.5,0.28432314]
[1741147465481,2.0,142.54,142.52,62.84035038]
[1741147465649,2.0,142.54,142.53,55.82385038]
[1741147465980,2.0,142.56,142.53,137.42385038]
[1741147466147,2.0,142.55,142.54,55.82385038]
[1741147466343,2.0,142.58,142.54,137.42385038]
[1741147466547,2.0,142.61,142.57,55.82385038]
[1741147466746,2.0,142.62,142.6,55.82385038]
[1741147466968,2.0,142.62,142.61,55.82385038]
[1741147467379,2.0,142.63,142.61,55.82385038]
[1741147467781,2.0,142.63,142.61,62.83545038]
[1741147468155,2.0,142.62,142.6,7.0126]
[1741147468565,2.0,142.63,142.61,55.82385038]
[1741147468964,2.0,142.63,142.62,55.82385038]
[1741147469784,2.0,142.63,142.62,7.0116]
[1741147470096,2.0,142.63,142.6,144.43595038]
[1741147470289,2.0,142.63,142.61,312.0]
[1741147470594,2.0,142.63,142.61,367.82385038]
[1741147470963,2.0,142.63,142.62,55.82385038]
[1741147471163,2.0,142.64,142.62,55.82385038]
[1741147471392,2.0,142.64,142.63,55.82385038]
[1741147471773,0.0001,142.66,142.65,27.29442314]
[1741147471976,0.0001,142.66,142.65,83.11827352]
[1741147472696,0.0001,142.66,142.65,82.83395038]
[1741147472868,2.0001,142.66,142.65,82.83395038]
[1741147473070,2.0001,142.66,142.65,75.82385038]
[1741147473267,2.0,142.65,142.63,81.6]
[1741147473470,2.0,142.6,142.59,55.82385038]
[1741147473678,2.0,142.6,142.59,81.6]
[1741147474199,2.0,142.64,142.62,20.0]
[1741147474375,2.0,142.54,142.52,81.6]
[1741147474887,2.0,142.54,142.53,55.82385038]
[1741147475192,2.0,142.53,142.52,137.42385038]
[1741147475578,2.0,142.54,142.52,144.44035038]
[1741147475765,2.0,142.54,142.53,55.82385038]
[1741147475965,2.0,142.54,142.53,56.10817352]
[1741147476196,2.0,142.54,142.53,55.82385038]
[1741147476399,2.0,142.52,142.5,55.82385038]
[1741147476601,55.82385038,142.56,142.49,137.45685038]
[1741147476602,2.0,142.5,142.49,137.45685038]
[1741147477311,2.0,142.53,142.5,0.28432314]
[1741147477607,2.0,142.51,142.5,81.88432314]
[1741147477780,2.0,142.51,142.5,88.90182314]
[1741147478179,2.0,142.53,142.5,88.90182314]
[1741147478372,2.0,142.51,142.5,88.90182314]
[1741147478708,2.0,142.54,142.5,144.72567352]
[1741147478888,2.0,142.54,142.53,56.10817352]
[1741147479082,2.0,142.55,142.53,137.70817352]
[1741147479278,2.0,142.55,142.54,55.82385038]
[1741147479607,2.0,142.55,142.54,56.10817352]
[1741147479784,2.0,142.55,142.53,137.42385038]
[1741147479980,2.0,142.54,142.53,81.6]
[1741147480890,2.0,142.54,142.53,393.6]
[1741147481276,2.0,142.5,142.49,0.033]
[1741147482514,59.29912241,142.5,142.49,0.033]
[1741147482977,68.31662241,142.5,142.49,0.033]
[1741147484012,66.31662241,142.5,142.49,0.033]
[1741147484190,59.29912241,142.5,142.49,0.033]
[1741147485301,57.82385038,142.5,142.49,0.033]
[1741147485793,55.95819864,142.5,142.49,0.033]
[1741147486420,64.45097067,142.5,142.49,0.033]
[1741147486988,3.47527203,142.5,142.49,0.033]
[1741147487184,55.95819864,142.5,142.49,0.033]
[1741147487580,57.43347067,142.5,142.49,0.033]
[1741147487812,64.45097067,142.5,142.49,0.033]
[1741147488010,2.0,142.44,142.43,312.0]
[1741147488214,2.0,142.42,142.41,0.033]
[1741147488399,55.95819864,142.42,142.41,0.033]
[1741147489588,8.36,142.42,142.41,0.033]
[1741147489984,2.0,142.42,142.41,7.0549]
[1741147490192,2.0,142.42,142.41,61.29742178]
[1741147491219,2.0,142.42,142.41,373.29742178]
[1741147491617,2.0,142.42,142.41,61.29742178]
[1741147492321,2.0,142.42,142.41,0.033]
[1741147493205,2.0,142.42,142.41,81.633]
[1741147493412,55.95819864,142.42,142.41,0.033]
[1741147493796,57.43347067,142.42,142.41,0.033]
[1741147494426,64.45487067,142.42,142.41,0.033]
[1741147495008,57.43347067,142.42,142.41,0.033]
[1741147495297,55.95819864,142.42,142.41,0.033]
[1741147495919,62.97959864,142.42,142.41,0.033]
[1741147496227,2.0,142.39,142.38,0.033]
[1741147496420,210.12366931,142.39,142.38,0.033]
[1741147496592,208.64839728,142.39,142.35,0.033]
[1741147496796,53.95819864,142.36,142.35,0.033]
[1741147497138,55.95819864,142.36,142.35,0.033]
[1741147499933,62.98259864,142.36,142.35,0.033]
[1741147500625,55.95819864,142.36,142.35,0.033]
[1741147501027,64.45787067,142.36,142.35,0.033]
[1741147501526,55.95819864,142.28,142.27,0.033]
[1741147501934,2.0,142.28,142.27,0.033]
[1741147502308,64.46177067,142.28,142.27,0.033]
[1741147502725,146.26177067,142.28,142.27,0.033]
[1741147503035,146.78649864,142.28,142.27,0.033]
[1741147503236,62.98649864,142.28,142.27,0.033]
[1741147503428,64.46177067,142.28,142.27,0.033]
[1741147503732,55.95819864,142.28,142.27,0.033]
[1741147504634,2.0,142.28,142.27,0.033]
[1741147505936,2.0,142.28,142.27,81.633]
[1741147506110,2.0,142.28,142.27,467.87552178]
[1741147506718,2.0303,142.39,142.28,0.28432314]
[1741147506909,53.95819864,142.37,142.32,0.28432314]
[1741147507113,53.95819864,142.37,142.32,81.88432314]
[1741147507834,12.7902,142.4,142.32,81.88432314]
[1741147508036,53.95819864,142.37,142.33,7.0259]
[1741147508224,53.95819864,142.38,142.33,7.0259]
[1741147508534,8.2844,142.44,142.36,0.28432314]
[1741147508702,53.95819864,142.42,142.36,0.28432314]
[1741147508907,8.2844,142.44,142.37,0.28432314]
[1741147508908,53.95819864,142.41,142.37,0.28432314]
[1741147509409,53.95819864,142.44,142.37,135.84252178]
[1741147509632,53.95819864,142.44,142.39,0.28432314]
[1741147509829,53.95819864,142.45,142.39,81.88432314]
[1741147510167,53.95819864,142.44,142.39,81.88432314]
[1741147510340,53.95819864,142.4,142.33,135.55819864]
[1741147510537,53.95819864,142.4,142.34,0.28432314]
[1741147510718,53.95819864,142.4,142.34,54.24252178]
[1741147511041,55.43347067,142.45,142.34,0.14216157]
[1741147511042,53.95819864,142.39,142.34,0.14216157]
[1741147511245,53.95819864,142.35,142.28,53.95819864]
[1741147511448,53.95819864,142.29,142.27,0.033]
[1741147511615,53.95819864,142.31,142.27,0.033]
[1741147511616,60.49819864,142.28,142.27,0.033]
[1741147512017,53.95819864,142.28,142.27,0.033]
[1741147512315,60.49819864,142.28,142.27,0.033]
[1741147513129,67.52649864,142.28,142.27,0.033]